[Event "Mitropa Cup Women 2019"]
[Site "Radenci"]
[Date "2019.05.27"]
[Round "1.9"]
[White "Medic, Mirjana"]
[Black "Ragger, Anna-Christina"]
[Result "1/2-1/2"]
[ECO "D30"]
[WhiteElo "2253"]
[BlackElo "2272"]
[Annotator "NA RC"]
[PlyCount "120"]
[EventDate "2019.05.27"]
[EventType "team-tourn"]
[EventCountry "SLO"]
[SourceTitle "playchess.com"]
[Source "ChessBase"]
[SourceQuality "1"]
[WhiteTeam "Croatia"]
[BlackTeam "Austria"]
[WhiteTeamCountry "CRO"]
[BlackTeamCountry "AUT"]
[TimeControl "40/5400+30:1800+30"]

1. d4 {[%emt 0:00:00]} d5 {[%emt 0:00:00]} 2. Nf3 {[%emt 0:00:05]} e6 {[%emt 0:00:00]} 3. c4 {[%emt 0:01:16]} a6 {[%emt 0:00:00]} 4. cxd5 {[%emt 0:01:39]} exd5 {[%emt 0:00:00]} 5. Qc2 {[%emt 0:00:28]} Nf6 {[%emt 0:02:12]} 6. Bg5 {[%emt 0:00:27]} Be6 {[%emt 0:00:27]} 7. Nc3 {[%emt 0:00:30]} Nbd7 {[%emt 0:00:39]} 8. e3 {[%emt 0:00:47]} Bd6 {[%emt 0:00:10]} 9. Bd3 {[%emt 0:03:02]} c6 {[%emt 0:00:11]} 10. h3 {[%emt 0:00:41]} Qc7 {[%emt 0:00:31]} 11. Bf5 {[%emt 0:18:00]} Bxf5 {[%emt 0:07:58]} 12. Qxf5 {[%emt 0:00:02]} g6 {[%emt 0:00:18]} 13. Qc2 {[%emt 0:02:06]} h6 {[%emt 0:00:16]} 14. Bxf6 {[%emt 0:00:38]} Nxf6 {[%emt 0:00:04]} 15. O-O-O {[%emt 0:04:38]} O-O-O {[%emt 0:04:00]} 16. Kb1 {[%emt 0:06:05]} Kb8 {[%emt 0:11:13]} 17. Nd2 {[%emt 0:02:24]} Rhe8 {[%emt 0:05:46]} 18. Nb3 {[%emt 0:02:05]} Bb4 {[%emt 0:04:28]} 19. Na4 {[%emt 0:01:12]} Bf8 {[%emt 0:04:21]} 20. Nac5 {[%emt 0:04:37]} Ne4 {[%emt 0:11:21]} 21. Nd3 {[%emt 0:05:14]} b6 {[%emt 0:04:07]} 22. Rc1 {[%emt 0:15:31]} Rc8 {[%emt 0:01:25]} 23. f3 {[%emt 0:02:05]} Ng3 {[%emt 0:11:04]} 24. Rhe1 {[%emt 0:00:06]} Kb7 {[%emt 0:00:42]} 25. Qf2 {[%emt 0:03:21]} Bg7 {[%emt 0:07:01]} 26. Nf4 {[%emt 0:02:05]} Nf5 {[%emt 0:04:45]} 27. Nxd5 {[%emt 0:00:10]} Qd6 {[%emt 0:01:35]} 28. Nc3 {[%emt 0:01:44]} Qb4 {[%emt 0:02:25]} 29. Ne4 {[%emt 0:00:50]} a5 {[%emt 0:10:18]} 30. Rc3 {[%emt 0:04:35]} a4 {[%emt 0:00:32]} 31. a3 {[%emt 0:01:01]} Qf8 {[%emt 0:02:08]} 32. Nc1 {[%emt 0:00:09]} c5 {[%emt 0:01:28]} 33. g4 {[%emt 0:02:35]} Nxd4 {[%emt 0:01:04]} 34. exd4 {[%emt 0:01:45]} Bxd4 {[%emt 0:00:04]} 35. Qg3 {[%emt 0:01:33]} Be5 {[%emt 0:00:23]} 36. f4 {[%emt 0:00:37]} Bxc3 {[%emt 0:00:04]} 37. Nxc3 {[%emt 0:01:33]} Rxe1 {[%emt 0:00:26]} 38. Qxe1 {[%emt 0:00:01]} Qe8 {[%emt 0:01:39]} 39. Qh1+ {[%emt 0:00:55]} Qc6 {[%emt 0:01:11]} 40. Qf1 {[%emt 0:00:00]} Rd8 {[%emt 0:00:00]} 41. Qc4 {[%emt 0:09:58]} f5 {[%emt 0:05:20]} 42. gxf5 {[%emt 0:11:50]} gxf5 {[%emt 0:00:16]} 43. Qf7+ {[%emt 0:00:33]} Qd7 {[%emt 0:01:02]} 44. Qf6 {[%emt 0:03:18]} Re8 {[%emt 0:02:40]} 45. Qxh6 {[%emt 0:05:45]} Re1 {[%emt 0:08:48]} 46. Kc2 {[%emt 0:00:38]} Rh1 {[%emt 0:01:21]} 47. Qh5 {[%emt 0:01:18]} Rh2+ {[%emt 0:01:00]} 48. N1e2 {[%emt 0:00:03]} b5 {[%emt 0:06:44]} 49. Qf3+ {[%emt 0:00:20]} Qc6 {[%emt 0:00:06]} 50. Qg3 {[%emt 0:02:55]} Rg2 {[%emt 0:01:43]} 51. Qd3 {[%emt 0:00:05]} b4 {[%emt 0:00:16]} 52. Nd5 {[%emt 0:03:04]} bxa3 {[%emt 0:02:58]} 53. bxa3 {[%emt 0:00:23]} Rxe2+ {[%emt 0:02:15]} 54. Qxe2 {[%emt 0:00:02]} Qxd5 {[%emt 0:00:06]} 55. Qb5+ {[%emt 0:00:25]} Kc7 {[%emt 0:00:04]} 56. Qa5+ {[%emt 0:01:39]} Kb7 {[%emt 0:00:51]} 57. Qxa4 {[%emt 0:02:15]} Qg2+ {[%emt 0:00:28]} 58. Kb1 {[%emt 0:00:31]} Qf1+ {[%emt 0:02:11]} 59. Kb2 {[%emt 0:00:38]} Qf2+ {[%emt 0:00:31]} 60. Kb1 {[%emt 0:00:56]} Qf1+ {[%emt 0:00:07]} 1/2-1/2

[Event "Mitropa Cup Women 2019"]
[Site "Radenci"]
[Date "2019.05.27"]
[Round "1.10"]
[White "Newrkla, Katharina"]
[Black "Cvitan, Ena"]
[Result "0-1"]
[ECO "B11"]
[WhiteElo "2190"]
[BlackElo "2132"]
[Annotator "NA RC"]
[PlyCount "108"]
[EventDate "2019.05.27"]
[EventType "team-tourn"]
[EventCountry "SLO"]
[SourceTitle "playchess.com"]
[Source "ChessBase"]
[SourceQuality "1"]
[WhiteTeam "Austria"]
[BlackTeam "Croatia"]
[WhiteTeamCountry "AUT"]
[BlackTeamCountry "CRO"]
[TimeControl "40/5400+30:1800+30"]

1. e4 {[%emt 0:00:00]} c6 {[%emt 0:00:25]} 2. Nf3 {[%emt 0:00:00]} d5 {[%emt 0:00:04]} 3. Nc3 {[%emt 0:00:00]} dxe4 {[%emt 0:02:10]} 4. Nxe4 {[%emt 0:00:00]} Nf6 {[%emt 0:00:03]} 5. Qe2 {[%emt 0:00:04]} Nxe4 {[%emt 0:00:17]} 6. Qxe4 {[%emt 0:00:06]} Qa5 {[%emt 0:00:04]} 7. Bc4 {[%emt 0:01:24]} Qf5 {[%emt 0:04:51]} 8. Qe2 {[%emt 0:00:10]} e6 {[%emt 0:18:57]} 9. d4 {[%emt 0:05:27]} Be7 {[%emt 0:12:00]} 10. Ne5 {[%emt 0:08:41]} g5 {[%emt 0:11:01]} 11. Bd3 {[%emt 0:24:24]} Qf6 {[%emt 0:00:22]} 12. Bd2 {[%emt 0:00:25]} Nd7 {[%emt 0:02:50]} 13. O-O-O {[%emt 0:05:56]} Nxe5 {[%emt 0:06:33]} 14. dxe5 {[%emt 0:00:04]} Qg7 {[%emt 0:00:05]} 15. f4 {[%emt 0:02:25]} gxf4 {[%emt 0:05:42]} 16. Rhf1 {[%emt 0:11:57]} Bd7 {[%emt 0:04:51]} 17. Rxf4 {[%emt 0:03:09]} O-O-O {[%emt 0:02:47]} 18. Qf2 {[%emt 0:06:09]} Qxe5 {[%emt 0:06:17]} 19. Qxa7 {[%emt 0:04:57]} f6 {[%emt 0:10:18]} 20. Ra4 {[%emt 0:03:03]} Bc5 {[%emt 0:01:44]} 21. Qa8+ {[%emt 0:10:34]} Qb8 {[%emt 0:00:11]} 22. Rf1 {[%emt 0:01:11]} Be7 {[%emt 0:06:08]} 23. Qa5 {[%emt 0:00:19]} b5 {[%emt 0:01:53]} 24. Rh4 {[%emt 0:06:33]} f5 {[%emt 0:01:00]} 25. Rh6 {[%emt 0:01:08]} Qb7 {[%emt 0:01:23]} 26. a4 {[%emt 0:01:19]} Rhg8 {[%emt 0:00:29]} 27. Rxh7 {[%emt 0:00:44]} Bc5 {[%emt 0:00:33]} 28. Qc3 {[%emt 0:00:48]} Qa7 {[%emt 0:00:01]} 29. Kb1 {[%emt 0:02:54]} Bd4 {[%emt 0:00:36]} 30. Qb4 {[%emt 0:00:36]} Bc5 {[%emt 0:00:22]} 31. Qa5 {[%emt 0:00:29]} Rxg2 {[%emt 0:00:29]} 32. axb5 {[%emt 0:00:12]} cxb5 {[%emt 0:00:32]} 33. Qxa7 {[%emt 0:00:31]} Bxa7 {[%emt 0:00:01]} 34. Bf4 {[%emt 0:00:35]} Bd4 {[%emt 0:00:45]} 35. Re1 {[%emt 0:00:32]} e5 {[%emt 0:01:03]} 36. Bxe5 {[%emt 0:00:37]} Re8 {[%emt 0:00:38]} 37. Bxd4 {[%emt 0:00:32]} Rxe1+ {[%emt 0:00:09]} 38. Ka2 {[%emt 0:00:02]} Rg4 {[%emt 0:00:50]} 39. Rh8+ {[%emt 0:00:45]} Kc7 {[%emt 0:00:28]} 40. c3 {[%emt 0:00:00]} Be6+ {[%emt 0:00:00]} 41. Ka3 {[%emt 0:04:09]} Rxd4 {[%emt 0:06:09]} 42. cxd4 {[%emt 0:00:47]} Re3 {[%emt 0:00:06]} 43. Kb4 {[%emt 0:00:28]} Rxd3 {[%emt 0:00:10]} 44. Kxb5 {[%emt 0:00:16]} Rxd4 {[%emt 0:00:27]} 45. h4 {[%emt 0:01:56]} f4 {[%emt 0:03:14]} 46. Rf8 {[%emt 0:00:09]} Kd6 {[%emt 0:02:18]} 47. h5 {[%emt 0:01:38]} Ke5 {[%emt 0:03:19]} 48. h6 {[%emt 0:00:39]} Rd7 {[%emt 0:00:14]} 49. b4 {[%emt 0:03:08]} Rh7 {[%emt 0:00:39]} 50. Kc5 {[%emt 0:00:59]} Rxh6 {[%emt 0:00:20]} 51. b5 {[%emt 0:00:06]} Rf6 {[%emt 0:02:41]} 52. Rh8 {[%emt 0:01:28]} Bd7 {[%emt 0:04:09]} 53. Rh7 {[%emt 0:05:32]} Bxb5 {[%emt 0:00:50]} 54. Kxb5 {[%emt 0:00:07]} f3 {[%emt 0:00:10]} 0-1

[Event "Mitropa Cup Women 2019"]
[Site "Radenci"]
[Date "2019.05.27"]
[Round "1.11"]
[White "Blazeka, Mihaela"]
[Black "Hapala, Elisabeth"]
[Result "1-0"]
[ECO "B44"]
[WhiteElo "2118"]
[BlackElo "2122"]
[Annotator "NA RC"]
[PlyCount "113"]
[EventDate "2019.05.27"]
[EventType "team-tourn"]
[EventCountry "SLO"]
[SourceTitle "playchess.com"]
[Source "ChessBase"]
[SourceQuality "1"]
[WhiteTeam "Croatia"]
[BlackTeam "Austria"]
[WhiteTeamCountry "CRO"]
[BlackTeamCountry "AUT"]
[TimeControl "40/5400+30:1800+30"]

1. e4 {[%emt 0:00:00]} c5 {[%emt 0:00:00]} 2. Nf3 {[%emt 0:00:00]} e6 {[%emt 0:00:00]} 3. c4 {[%emt 0:00:00]} Nc6 {[%emt 0:00:00]} 4. d4 {[%emt 0:00:01]} cxd4 {[%emt 0:00:00]} 5. Nxd4 {[%emt 0:00:07]} Nf6 {[%emt 0:00:00]} 6. Nc3 {[%emt 0:00:08]} Bb4 {[%emt 0:00:00]} 7. Nxc6 {[%emt 0:00:27]} dxc6 {[%emt 0:00:02]} 8. Qxd8+ {[%emt 0:00:40]} Kxd8 {[%emt 0:00:03]} 9. e5 {[%emt 0:00:24]} Nd7 {[%emt 0:00:04]} 10. f4 {[%emt 0:11:51]} Bxc3+ {[%emt 0:00:15]} 11. bxc3 {[%emt 0:00:07]} b6 {[%emt 0:00:26]} 12. Be2 {[%emt 0:11:39]} Kc7 {[%emt 0:00:54]} 13. Be3 {[%emt 0:02:46]} Bb7 {[%emt 0:01:43]} 14. Bf3 {[%emt 0:07:02]} Ba6 {[%emt 0:11:47]} 15. Be2 {[%emt 0:01:01]} c5 {[%emt 0:00:26]} 16. a4 {[%emt 0:16:50]} Rad8 {[%emt 0:37:46]} 17. Rd1 {[%emt 0:20:44]} Nb8 {[%emt 0:02:42]} 18. Rxd8 {[%emt 0:06:55]} Rxd8 {[%emt 0:00:08]} 19. O-O {[%emt 0:00:11]} g6 {[%emt 0:26:16]} 20. g4 {[%emt 0:00:17]} Nc6 {[%emt 0:01:27]} 21. f5 {[%emt 0:00:14]} gxf5 {[%emt 0:00:14]} 22. gxf5 {[%emt 0:00:28]} Rg8+ {[%emt 0:00:44]} 23. Kh1 {[%emt 0:04:59]} Bb7 {[%emt 0:01:27]} 24. Bf3 {[%emt 0:00:12]} exf5 {[%emt 0:01:16]} 25. Bd5 {[%emt 0:05:11]} Ne7 {[%emt 0:02:55]} 26. Bxb7 {[%emt 0:00:18]} Kxb7 {[%emt 0:00:01]} 27. h4 {[%emt 0:00:20]} Kc7 {[%emt 0:05:39]} 28. Bg5 {[%emt 0:00:14]} Kd7 {[%emt 0:00:03]} 29. Rd1+ {[%emt 0:02:40]} Ke8 {[%emt 0:02:58]} 30. a5 {[%emt 0:02:11]} Rg6 {[%emt 0:03:45]} 31. Bf6 {[%emt 0:02:46]} Rg4 {[%emt 0:00:06]} 32. axb6 {[%emt 0:01:45]} axb6 {[%emt 0:00:00]} 33. Rd6 {[%emt 0:01:50]} Rxc4 {[%emt 0:00:01]} 34. Rxb6 {[%emt 0:00:08]} Nc8 {[%emt 0:01:13]} 35. Rb8 {[%emt 0:00:28]} Kd7 {[%emt 0:00:04]} 36. Rb7+ {[%emt 0:00:17]} Kc6 {[%emt 0:00:31]} 37. Rxf7 {[%emt 0:00:31]} Rxc3 {[%emt 0:00:29]} 38. Bd8 {[%emt 0:02:07]} Nb6 {[%emt 0:02:18]} 39. Rf6+ {[%emt 0:00:26]} Kd5 {[%emt 0:00:36]} 40. Rxb6 {[%emt 0:00:00]} Rc1+ {[%emt 0:00:00]} 41. Kg2 {[%emt 0:01:36]} Kxe5 {[%emt 0:21:44]} 42. Bg5 {[%emt 0:11:23]} Rc2+ {[%emt 0:00:58]} 43. Kf3 {[%emt 0:00:25]} Rc3+ {[%emt 0:00:32]} 44. Ke2 {[%emt 0:00:21]} Ra3 {[%emt 0:02:05]} 45. Rc6 {[%emt 0:07:43]} Kd5 {[%emt 0:00:34]} 46. Rxc5+ {[%emt 0:00:12]} Ke4 {[%emt 0:02:12]} 47. Rc4+ {[%emt 0:00:12]} Ke5 {[%emt 0:00:38]} 48. Be3 {[%emt 0:01:23]} Ra2+ {[%emt 0:01:12]} 49. Kf3 {[%emt 0:00:18]} Ra3 {[%emt 0:00:43]} 50. Rc5+ {[%emt 0:00:22]} Ke6 {[%emt 0:00:30]} 51. Rc7 {[%emt 0:01:08]} h5 {[%emt 0:04:39]} 52. Rh7 {[%emt 0:04:12]} Kf6 {[%emt 0:00:04]} 53. Rxh5 {[%emt 0:00:19]} Kg6 {[%emt 0:00:05]} 54. Rh6+ {[%emt 0:00:39]} Kg7 {[%emt 0:00:05]} 55. Rd6 {[%emt 0:00:26]} Rb3 {[%emt 0:01:21]} 56. Kf4 {[%emt 0:00:16]} Rb4+ {[%emt 0:00:24]} 57. Bd4+ {[%emt 0:00:07]} 1-0

[Event "Mitropa Cup Women 2019"]
[Site "Radenci"]
[Date "2019.05.27"]
[Round "1.12"]
[White "Schloffer, Jasmin-Denise"]
[Black "Spiranec, Noemi"]
[Result "1/2-1/2"]
[ECO "E36"]
[WhiteElo "2133"]
[BlackElo "2009"]
[Annotator "NA"]
[PlyCount "68"]
[EventDate "2019.05.27"]
[EventType "team-tourn"]
[EventCountry "SLO"]
[SourceTitle "playchess.com"]
[Source "ChessBase"]
[SourceQuality "1"]
[WhiteTeam "Austria"]
[BlackTeam "Croatia"]
[WhiteTeamCountry "AUT"]
[BlackTeamCountry "CRO"]
[TimeControl "40/5400+30:1800+30"]

1. d4 {[%emt 0:00:00]} Nf6 {[%emt 0:00:00]} 2. c4 {[%emt 0:00:00]} e6 {[%emt 0:00:00]} 3. Nc3 {[%emt 0:00:00]} Bb4 {[%emt 0:00:00]} 4. Qc2 {[%emt 0:00:00]} O-O {[%emt 0:00:00]} 5. a3 {[%emt 0:00:00]} Bxc3+ {[%emt 0:00:03]} 6. Qxc3 {[%emt 0:00:00]} d5 {[%emt 0:00:05]} 7. Bg5 {[%emt 0:03:50]} dxc4 {[%emt 0:00:13]} 8. Qxc4 {[%emt 0:00:13]} b6 {[%emt 0:00:06]} 9. Nf3 {[%emt 0:02:19]} Ba6 {[%emt 0:00:16]} 10. Qc2 {[%emt 0:00:54]} c5 {[%emt 0:01:15]} 11. Rd1 {[%emt 0:05:52]} cxd4 {[%emt 0:18:28]} 12. Nxd4 {[%emt 0:22:11]} Nbd7 {[%emt 0:08:03]} 13. e3 {[%emt 0:05:35]} Bxf1 {[%emt 0:00:10]} 14. Kxf1 {[%emt 0:01:48]} Rc8 {[%emt 0:06:55]} 15. Qe2 {[%emt 0:01:46]} Qc7 {[%emt 0:04:24]} 16. Nb5 {[%emt 0:06:17]} Qc2 {[%emt 0:02:06]} 17. Nc3 {[%emt 0:04:16]} Qxe2+ {[%emt 0:06:50]} 18. Kxe2 {[%emt 0:00:13]} Ne5 {[%emt 0:02:49]} 19. Rd4 {[%emt 0:11:06]} Nc4 {[%emt 0:08:29]} 20. Bxf6 {[%emt 0:02:24]} gxf6 {[%emt 0:00:07]} 21. Ne4 {[%emt 0:00:12]} Kg7 {[%emt 0:00:53]} 22. Nd6 {[%emt 0:00:57]} Nxd6 {[%emt 0:00:59]} 23. Rxd6 {[%emt 0:00:05]} Rc2+ {[%emt 0:00:29]} 24. Rd2 {[%emt 0:00:05]} Rfc8 {[%emt 0:00:06]} 25. Rhd1 {[%emt 0:00:45]} f5 {[%emt 0:03:31]} 26. Rxc2 {[%emt 0:07:36]} Rxc2+ {[%emt 0:00:07]} 27. Rd2 {[%emt 0:00:04]} Rc1 {[%emt 0:03:35]} 28. f4 {[%emt 0:04:05]} Rh1 {[%emt 0:02:39]} 29. h3 {[%emt 0:00:07]} Rc1 {[%emt 0:01:41]} 30. Kf3 {[%emt 0:01:36]} Rf1+ {[%emt 0:00:35]} 31. Ke2 {[%emt 0:02:49]} Rc1 {[%emt 0:00:07]} 32. Kf3 {[%emt 0:00:41]} Rf1+ {[%emt 0:00:05]} 33. Ke2 {[%emt 0:01:54]} Rc1 {[%emt 0:00:06]} 34. Kf3 {[%emt 0:00:33]} Rf1+ {[%emt 0:00:06]} 1/2-1/2

[Event "Mitropa Cup Women 2019"]
[Site "Radenci"]
[Date "2019.05.27"]
[Round "1.14"]
[White "Janzelj, Lara"]
[Black "Afraoui, Anaelle"]
[Result "0-1"]
[ECO "E93"]
[WhiteElo "2203"]
[BlackElo "2068"]
[Annotator "NA"]
[PlyCount "84"]
[EventDate "2019.05.27"]
[EventType "team-tourn"]
[EventCountry "SLO"]
[SourceTitle "playchess.com"]
[Source "ChessBase"]
[SourceQuality "1"]
[WhiteTeam "Slovenia"]
[BlackTeam "France"]
[WhiteTeamCountry "SLO"]
[BlackTeamCountry "FRA"]
[TimeControl "40/5400+30:1800+30"]

1. d4 {[%emt 0:00:00]} Nf6 {[%emt 0:00:00]} 2. c4 {[%emt 0:00:00]} d6 {[%emt 0:00:00]} 3. Nf3 {[%emt 0:00:00]} g6 {[%emt 0:00:00]} 4. Nc3 {[%emt 0:00:00]} Bg7 {[%emt 0:00:05]} 5. e4 {[%emt 0:00:00]} O-O {[%emt 0:00:07]} 6. Be2 {[%emt 0:00:00]} Nbd7 {[%emt 0:00:09]} 7. Be3 {[%emt 0:00:10]} e5 {[%emt 0:00:23]} 8. d5 {[%emt 0:00:12]} Ng4 {[%emt 0:00:27]} 9. Bg5 {[%emt 0:00:06]} f6 {[%emt 0:00:07]} 10. Bc1 {[%emt 0:00:07]} f5 {[%emt 0:01:01]} 11. exf5 {[%emt 0:04:32]} gxf5 {[%emt 0:02:15]} 12. Ng5 {[%emt 0:00:09]} Ndf6 {[%emt 0:02:40]} 13. h3 {[%emt 0:06:02]} Nh6 {[%emt 0:00:56]} 14. Bd2 {[%emt 0:08:15]} c6 {[%emt 0:14:23]} 15. Qb3 {[%emt 0:05:34]} f4 {[%emt 0:05:50]} 16. c5 {[%emt 0:12:03]} cxd5 {[%emt 0:06:49]} 17. Nxd5 {[%emt 0:05:18]} Nxd5 {[%emt 0:02:52]} 18. Qxd5+ {[%emt 0:00:04]} Kh8 {[%emt 0:00:06]} 19. h4 {[%emt 0:07:06]} dxc5 {[%emt 0:02:49]} 20. Qxc5 {[%emt 0:00:49]} Bf5 {[%emt 0:08:25]} 21. Bc3 {[%emt 0:00:58]} b6 {[%emt 0:02:45]} 22. Qb5 {[%emt 0:01:16]} Qf6 {[%emt 0:17:50]} 23. O-O {[%emt 0:07:41]} Nf7 {[%emt 0:03:12]} 24. Bf3 {[%emt 0:05:04]} Rac8 {[%emt 0:02:43]} 25. Rad1 {[%emt 0:05:31]} Rc5 {[%emt 0:10:50]} 26. Qe2 {[%emt 0:03:41]} Nxg5 {[%emt 0:02:56]} 27. hxg5 {[%emt 0:00:01]} Qxg5 {[%emt 0:00:39]} 28. Bb4 {[%emt 0:02:54]} Rc2 {[%emt 0:01:54]} 29. Rd2 {[%emt 0:06:20]} Rxd2 {[%emt 0:01:08]} 30. Bxd2 {[%emt 0:00:04]} e4 {[%emt 0:03:08]} 31. Bxe4 {[%emt 0:00:06]} Re8 {[%emt 0:00:10]} 32. f3 {[%emt 0:04:45]} Bd4+ {[%emt 0:00:58]} 33. Rf2 {[%emt 0:00:02]} Bxe4 {[%emt 0:03:34]} 34. fxe4 {[%emt 0:00:15]} f3 {[%emt 0:02:36]} 35. Qxf3 {[%emt 0:03:54]} Qxd2 {[%emt 0:00:12]} 36. Qf6+ {[%emt 0:00:06]} Bxf6 {[%emt 0:00:44]} 37. Rxd2 {[%emt 0:00:02]} Rxe4 {[%emt 0:00:07]} 38. Rd7 {[%emt 0:00:05]} Bd4+ {[%emt 0:01:36]} 39. Kh2 {[%emt 0:00:19]} a5 {[%emt 0:00:19]} 40. b3 {[%emt 0:00:00]} Bc5 {[%emt 0:00:00]} 41. Rb7 {[%emt 0:00:38]} Re2 {[%emt 0:01:26]} 42. a3 {[%emt 0:00:16]} Rb2 {[%emt 0:00:40]} 0-1

[Event "Mitropa Cup Women 2019"]
[Site "Radenci"]
[Date "2019.05.27"]
[Round "1.15"]
[White "Choisy, Mathilde"]
[Black "Urh, Zala"]
[Result "1/2-1/2"]
[ECO "C45"]
[WhiteElo "2113"]
[BlackElo "2099"]
[Annotator "NA"]
[PlyCount "60"]
[EventDate "2019.05.27"]
[EventType "team-tourn"]
[EventCountry "SLO"]
[SourceTitle "playchess.com"]
[Source "ChessBase"]
[SourceQuality "1"]
[WhiteTeam "France"]
[BlackTeam "Slovenia"]
[WhiteTeamCountry "FRA"]
[BlackTeamCountry "SLO"]
[TimeControl "40/5400+30:1800+30"]

1. e4 {[%emt 0:00:00]} e5 {[%emt 0:00:00]} 2. Nf3 {[%emt 0:00:00]} Nc6 {[%emt 0:00:00]} 3. d4 {[%emt 0:00:03]} exd4 {[%emt 0:00:00]} 4. Nxd4 {[%emt 0:00:09]} Bc5 {[%emt 0:02:49]} 5. Nb3 {[%emt 0:00:39]} Bb6 {[%emt 0:02:34]} 6. Nc3 {[%emt 0:00:14]} Nf6 {[%emt 0:06:02]} 7. Qe2 {[%emt 0:00:54]} O-O {[%emt 0:05:29]} 8. Bg5 {[%emt 0:01:22]} Bd4 {[%emt 0:13:31]} 9. Nxd4 {[%emt 0:08:59]} Nxd4 {[%emt 0:00:05]} 10. Qd2 {[%emt 0:03:38]} Ne6 {[%emt 0:02:28]} 11. Bh4 {[%emt 0:31:59]} Nxe4 {[%emt 0:15:39]} 12. Bxd8 {[%emt 0:01:19]} Nxd2 {[%emt 0:00:05]} 13. Bxc7 {[%emt 0:04:08]} Nxf1 {[%emt 0:02:17]} 14. Bd6 {[%emt 0:00:41]} Re8 {[%emt 0:01:00]} 15. Rxf1 {[%emt 0:08:37]} Nc5+ {[%emt 0:04:48]} 16. Kd2 {[%emt 0:00:37]} Ne4+ {[%emt 0:00:28]} 17. Nxe4 {[%emt 0:00:04]} Rxe4 {[%emt 0:00:01]} 18. Rae1 {[%emt 0:03:56]} Re6 {[%emt 0:00:20]} 19. Rxe6 {[%emt 0:07:32]} dxe6 {[%emt 0:02:20]} 20. c4 {[%emt 0:02:14]} b6 {[%emt 0:03:52]} 21. Ke3 {[%emt 0:01:28]} Bb7 {[%emt 0:02:34]} 22. g3 {[%emt 0:02:04]} Rd8 {[%emt 0:01:53]} 23. Rd1 {[%emt 0:03:06]} e5 {[%emt 0:02:35]} 24. Rd2 {[%emt 0:01:19]} f6 {[%emt 0:01:23]} 25. b3 {[%emt 0:01:58]} Kf7 {[%emt 0:01:49]} 26. h4 {[%emt 0:03:02]} Ke6 {[%emt 0:02:05]} 27. Bb4 {[%emt 0:00:39]} Rxd2 {[%emt 0:00:08]} 28. Bxd2 {[%emt 0:00:27]} Bc6 {[%emt 0:00:42]} 29. Bc3 {[%emt 0:00:28]} Be8 {[%emt 0:00:19]} 30. a4 {[%emt 0:01:00]} Bc6 {[%emt 0:00:09]} 1/2-1/2

[Event "Mitropa Cup Women 2019"]
[Site "Radenci"]
[Date "2019.05.27"]
[Round "1.16"]
[White "Kuhar, Larisa"]
[Black "Djidjeli, Sarah"]
[Result "1/2-1/2"]
[ECO "B32"]
[WhiteElo "1930"]
[BlackElo "2012"]
[Annotator "NA"]
[PlyCount "74"]
[EventDate "2019.05.27"]
[EventType "team-tourn"]
[EventCountry "SLO"]
[SourceTitle "playchess.com"]
[Source "ChessBase"]
[SourceQuality "1"]
[WhiteTeam "Slovenia"]
[BlackTeam "France"]
[WhiteTeamCountry "SLO"]
[BlackTeamCountry "FRA"]
[TimeControl "40/5400+30:1800+30"]

1. e4 {[%emt 0:00:00]} c5 {[%emt 0:00:00]} 2. Nf3 {[%emt 0:00:00]} Nc6 {[%emt 0:00:00]} 3. d4 {[%emt 0:00:00]} cxd4 {[%emt 0:00:00]} 4. Nxd4 {[%emt 0:00:03]} e5 {[%emt 0:00:00]} 5. Nb5 {[%emt 0:00:08]} d6 {[%emt 0:00:07]} 6. N1c3 {[%emt 0:00:25]} a6 {[%emt 0:00:08]} 7. Na3 {[%emt 0:00:06]} Be7 {[%emt 0:00:04]} 8. Nc4 {[%emt 0:01:47]} b5 {[%emt 0:00:40]} 9. Ne3 {[%emt 0:00:07]} Nf6 {[%emt 0:00:13]} 10. g3 {[%emt 0:02:35]} O-O {[%emt 0:01:13]} 11. Bg2 {[%emt 0:01:57]} b4 {[%emt 0:01:20]} 12. Ncd5 {[%emt 0:00:15]} Nxd5 {[%emt 0:00:45]} 13. Nxd5 {[%emt 0:00:24]} Bg5 {[%emt 0:00:49]} 14. Bxg5 {[%emt 0:03:49]} Qxg5 {[%emt 0:00:14]} 15. O-O {[%emt 0:01:06]} Rb8 {[%emt 0:01:36]} 16. Qd3 {[%emt 0:10:23]} a5 {[%emt 0:03:11]} 17. f4 {[%emt 0:10:24]} exf4 {[%emt 0:09:04]} 18. gxf4 {[%emt 0:01:44]} Qd8 {[%emt 0:04:00]} 19. f5 {[%emt 0:10:40]} f6 {[%emt 0:13:53]} 20. Rf4 {[%emt 0:15:28]} Ne5 {[%emt 0:17:03]} 21. Qb3 {[%emt 0:04:50]} Rf7 {[%emt 0:02:47]} 22. Rh4 {[%emt 0:02:59]} Bb7 {[%emt 0:07:57]} 23. Nf4 {[%emt 0:06:34]} Rc8 {[%emt 0:11:04]} 24. Kh1 {[%emt 0:10:28]} Qc7 {[%emt 0:12:35]} 25. Qh3 {[%emt 0:09:36]} Qxc2 {[%emt 0:04:30]} 26. Rxh7 {[%emt 0:03:20]} Kf8 {[%emt 0:00:54]} 27. Ng6+ {[%emt 0:01:22]} Ke8 {[%emt 0:04:26]} 28. Qh5 {[%emt 0:00:56]} Nxg6 {[%emt 0:03:09]} 29. fxg6 {[%emt 0:00:19]} Rf8 {[%emt 0:01:26]} 30. Rxg7 {[%emt 0:00:35]} Bxe4 {[%emt 0:01:02]} 31. Qb5+ {[%emt 0:02:08]} Rc6 {[%emt 0:00:20]} 32. Rg1 {[%emt 0:00:59]} Bxg2+ {[%emt 0:00:52]} 33. Rxg2 {[%emt 0:00:07]} Qd1+ {[%emt 0:00:20]} 34. Rg1 {[%emt 0:00:19]} Qf3+ {[%emt 0:00:12]} 35. Rg2 {[%emt 0:00:26]} Qd1+ {[%emt 0:00:08]} 36. Rg1 {[%emt 0:00:11]} Qf3+ {[%emt 0:00:05]} 37. Rg2 {[%emt 0:00:08]} Qd1+ {[%emt 0:00:12]} 1/2-1/2